Cogmind - Beta 10.2 @@@ ROGUE MODE // 2021.11.07 @ 23:42:23 Player: Cadence Result: Destroyed by S-10 Pest with Light Assault Rifle Performance ------------- Evolutions (2) 1000 Regions Visited (5) 1000 Robots Destroyed (15) 75 Value Destroyed (630) 630 Prototype IDs (3) 60 Alien Tech Used (0) 0 Bonus (300) 300 TOTAL SCORE: 3065 Bonus ------- Aligned with FarCom 300 Cogmind --------- Core Integrity 0/550 Matter 125/300 Energy 14/100 System Corruption 0% Temperature Cool (0) Movement Treading (145) Location -8/Materials Parts ------- > --- POWER (2) -------- (None) > --- PROPULSION (2) --- Advanced Treads > --- UTILITY (4) ------ Improved Targeting Computer Transmission Jammer > --- WEAPON (3) ------- Scythe > --- INVENTORY (4) ---- Cesium-ion Thruster Gauss Rifle Peak State ------------ > --- POWER ------------ Light Nuclear Core > --- PROPULSION ------- Advanced Treads Advanced Treads > --- UTILITY ---------- Compact Battery 0b10 Alert Chip Improved Targeting Computer Shield Generator > --- WEAPON ----------- Assault Rifle Gauss Rifle Longsword +1 > --- INVENTORY -------- Advanced Treads Advanced Treads Cesium-ion Thruster Small Storage Unit [Rating: 36] Favorites ----------- Power Ion Engine Engine Ion Engine Power Core Light Nuclear Core Propulsion Aluminum Leg Treads Advanced Treads Leg Aluminum Leg Wheel Wheel Hover Unit Improved Hover Unit Utility Small Storage Unit Device Experimental Sensor Array Storage Small Storage Unit Processor 0b10 Alert Chip Weapon Heavy Assault Rifle Energy Gun Medium Laser Ballistic Gun Heavy Assault Rifle Launcher Rocket Launcher Special Weapon Plasma Cutter Slashing Weapon Longsword +1 Build | -11 -10 -10 -10 -9 -8 ------- Run | Scr Mat Min Exi Min Mat Slots Evolved 4 | . . . . . 4 Power 1 | . . . . . 1 Propulsion . | . . . . . . Utility 2 | . . . . . 2 Weapon 1 | . . . . . 1 Parts Attached 57 | 6 3 7 3 . 38 Power 6 | 1 . 1 . . 4 Engine 5 | 1 . 1 . . 3 Core 1 | . . . . . 1 Reactor . | . . . . . . Propulsion 16 | 2 . 2 . . 12 Treads 8 | 2 . . . . 6 Leg 4 | . . 2 . . 2 Wheel 2 | . . . . . 2 Hover 2 | . . . . . 2 Flight . | . . . . . . Utility 13 | 1 1 1 2 . 8 Device 7 | . 1 1 . . 5 Storage 3 | 1 . . 1 . 1 Processor 3 | . . . 1 . 2 Hackware . | . . . . . . Protection . | . . . . . . Artifact . | . . . . . . Weapon 22 | 2 2 3 1 . 14 Energy Gun 4 | 2 1 1 . . . Energy Cannon . | . . . . . . Ballistic Gun 11 | . 1 2 . . 8 Ballistic Cannon . | . . . . . . Launcher 2 | . . . . . 2 Special Weapon 2 | . . . . . 2 Impact Weapon . | . . . . . . Slashing Weapon 3 | . . . 1 . 2 Piercing Weapon . | . . . . . . Special Melee Weapon . | . . . . . . Unidentified Prototypes 3 | . . 1 2 . . Parts Lost 17 | . . 1 . . 16 Power 2 | . . . . . 2 Propulsion 4 | . . . . . 4 Utility 4 | . . . . . 4 Weapon 7 | . . 1 . . 6 Highest Loss Streak 8 | . . 1 . . 8 Average Slot Usage (%) 92 | . 97 100 100 100 82 Engine 8 | . 14 14 14 14 1 Core 2 | . . . . . 6 Treads 7 | . 28 1 . . 13 Leg 15 | . . 26 28 28 3 Device 11 | . 12 14 11 . 12 Storage 10 | . 14 14 14 14 5 Processor 7 | . . . 2 14 13 Energy Gun 2 | . 19 6 . . . Ballistic Gun 15 | . 7 21 25 14 8 Launcher 3 | . . . . . 8 Slashing Weapon 5 | . . . 2 14 8 Naked Turns . | . . . . . . Heaviest Build 22 | 13 14 16 16 15 22 Greatest Support 44 | 40 40 40 20 20 44 Greatest Overweight (x) 1 | . . . . . 1 Average Overweight (x) . | . . . . . . Largest Inventory Capacity 6 | 6 6 6 6 6 6 Average Capacity 5 | 5 6 6 5 6 4 Most Carried 6 | 4 6 6 6 6 6 Average Carried 4 | 2 5 5 5 5 4 Final Capacity 6 | 6 6 6 6 6 4 Final Carried 6 | 4 6 5 6 6 2 Class Distribution -------------------- 83% | Mutant 8% | Scavenger-Mutant 5% | Assassin 3% | Skirmisher Dominant Class ---------------- Mutant | -10/Materials Mutant | -10/Mines Mutant | -10/Exiles Mutant | -9/Mines Mutant | -8/Materials Resources | -11 -10 -10 -10 -9 -8 ----------- Run | Scr Mat Min Exi Min Mat Matter Collected 812 | 260 18 120 . 44 370 Remotely . | . . . . . . Salvage Created 632 | . 18 196 . . 418 Parts 37 | . 4 9 . . 24 Haulers Intercepted . | . . . . . . Recyclers Shooed . | . . . . . . Parts Field Recycled . | . . . . . . Retrieved Matter . | . . . . . . Parts Self-Destructed . | . . . . . . Prevented . | . . . . . . Kills | -11 -10 -10 -10 -9 -8 ------- Run | Scr Mat Min Exi Min Mat Combat Hostiles Destroyed 13 | . . 4 . . 9 Melee 4 | . . . . . 4 Guns 7 | . . 4 . . 3 AOE 2 | . . . . . 2 Classes Destroyed 5 | . 1 2 . . 2 Watcher 2 | . 1 . . . 1 Swarmer 1 | . . . . . 1 Grunt 6 | . . 2 . . 4 Sentry 5 | . . 2 . . 3 Hunter 1 | . . . . . 1 Best Kill Streak 4 | . 1 2 . . 4 Combat Bots Only 4 | . . 2 . . 4 Max Kills in Single Turn 1 | . 1 1 . . 1 Gunslinging . | . . . . . . Exploded 1 | . . . . . 1 Melee 1 | . . . . . 1 Uniques/NPCs Destroyed . | . . . . . . Combat | -11 -10 -10 -10 -9 -8 -------- Run | Scr Mat Min Exi Min Mat Damage Taken 2661 | . . 436 . . 2225 Core 589 | . . 36 . . 553 Absorbed by Shields 54 | . . . . . 54 Core Remaining (%) 92 | 100 . . . 85 . Volleys Fired 53 | . 2 19 . . 32 Largest 3 | . 2 2 . . 3 Hottest 94 | . 80 73 . . 94 Shots Fired 98 | . 4 37 . . 57 Gun 91 | . 4 37 . . 50 Cannon . | . . . . . . Launcher 6 | . . . . . 6 Special 1 | . . . . . 1 Kinetic 75 | . . 25 . . 50 Thermal 6 | . . 5 . . 1 Explosive 6 | . . . . . 6 Electromagnetic 11 | . 4 7 . . . Robot Hit Streak 8 | . 1 6 . . 8 Robot Miss Streak 6 | . 2 6 . . 3 Penetration Max . | . . . . . . Secondary Targets . | . . . . . . Shots Hit Robots 89 | . 1 26 . . 62 Core Hits 30 | . 1 10 . . 19 Critical Hits 3 | . . . . . 3 Critical Kills 2 | . . . . . 2 Critical Parts Destroyed 1 | . . . . . 1 Melee Attacks 19 | . . . . . 19 Impact . | . . . . . . Slashing 19 | . . . . . 19 Piercing . | . . . . . . Sneak Attacks 1 | . . . . . 1 Combat Hostiles . | . . . . . . Follow-up Attacks . | . . . . . . Damage Inflicted 1854 | . 20 309 . . 1525 Guns 882 | . 20 309 . . 553 Cannons . | . . . . . . Explosions 157 | . . . . . 157 Melee 812 | . . . . . 812 Ramming . | . . . . . . Kinetic 755 | . . 202 . . 553 Thermal 27 | . . 24 . . 3 Explosive 157 | . . . . . 157 Electromagnetic 103 | . 20 83 . . . Impact . | . . . . . . Slashing 812 | . . . . . 812 Piercing . | . . . . . . Highest Corruption . | . . . . . . Average Corruption . | . . . . . . Corruption Purged . | . . . . . . Overload Shots . | . . . . . . Overflow Damage 62 | . . . . . 62 Projectiles . | . . . . . . Explosions 3 | . . . . . 3 Melee 59 | . . . . . 59 Knockbacks . | . . . . . . Impact . | . . . . . . Kinetic . | . . . . . . Secondary . | . . . . . . Self-Inflicted Damage 63 | . . . . . 63 Shots 2 | . . . . . 2 Rammed . | . . . . . . Targets Rammed . | . . . . . . Kicked . | . . . . . . Crushed . | . . . . . . Highest Temperature 163 | . 36 163 . . 27 Average Temperature 65 | . 20 77 . . 16 Received Heat Transfer 759 | . . 204 . . 555 Siege Activations . | . . . . . . Robots Corrupted . | . . . . . . Combat Hostiles . | . . . . . . Parts Fried . | . . . . . . Impact Corruptions . | . . . . . . Robots Melted . | . . . . . . Combat Hostiles . | . . . . . . Parts Melted . | . . . . . . Heat Transferred 99 | . . 74 . . 25 Parts Sabotaged . | . . . . . . Parts Stolen . | . . . . . . Parts Stripped . | . . . . . . Power Chain Reactions . | . . . . . . Missiles Intercepted . | . . . . . . Alert | -11 -10 -10 -10 -9 -8 ------- Run | Scr Mat Min Exi Min Mat Peak Influence 133 | . 22 118 . . 133 Initial 8 | . . 8 . . . Average 24 | . 17 47 . . 20 Maximum Alert Level . | . . . . . . Low Security (%) 100 | 100 100 100 . 100 100 Level 1 . | . . . . . . Level 2 . | . . . . . . Level 3 . | . . . . . . Level 4 . | . . . . . . Level 5 . | . . . . . . High Security . | . . . . . . Max Security . | . . . . . . Squads Dispatched 4 | . . . . . 4 Investigation . | . . . . . . Extermination . | . . . . . . Reinforcement 1 | . . . . . 1 Assault . | . . . . . . Garrison 3 | . . . . . 3 Intercept . | . . . . . . Construction Impeded . | . . . . . . Haulers Reinforced . | . . . . . . Stealth | -11 -10 -10 -10 -9 -8 --------- Run | Scr Mat Min Exi Min Mat Distress Signals 2 | . . . . . 2 Communications Jammed 24 | . . . . . 24 Distress Signals 23 | . . . . . 23 Times Spotted 26 | . 1 5 . . 20 Peak Tracking Total 7 | . 1 2 . . 7 Tactical Retreats 5 | . . 1 . . 4 Traps | -11 -10 -10 -10 -9 -8 ------- Run | Scr Mat Min Exi Min Mat Traps Triggered . | . . . . . . Indirectly . | . . . . . . Trap Hack Attempts . | . . . . . . Triggered . | . . . . . . Disarmed . | . . . . . . Reprogrammed . | . . . . . . Reused . | . . . . . . Traps Extracted . | . . . . . . Installed . | . . . . . . Triggered . | . . . . . . Machines | -11 -10 -10 -10 -9 -8 ---------- Run | Scr Mat Min Exi Min Mat Machines Disabled 4 | . . 2 . . 2 Max in Single Turn 2 | . . 1 . . 2 Machines Sabotaged . | . . . . . . Garrisons Compromised . | . . . . . . Overloaded Fab Kills . | . . . . . . Fab Network Shutdowns . | . . . . . . Hacking | -11 -10 -10 -10 -9 -8 --------- Run | Scr Mat Min Exi Min Mat Machines Accessed 4 | . . . 4 . . Terminals . | . . . . . . Fabricators . | . . . . . . Repair Stations . | . . . . . . Recycling Units . | . . . . . . Scanalyzers . | . . . . . . Garrison Access . | . . . . . . Total Hacks 49 | . . . 49 . . Successful 49 | . . . 49 . . Failed . | . . . . . . Catastrophic . | . . . . . . Database Lockouts . | . . . . . . Manual 1 | . . . 1 . . Terminals . | . . . . . . Fabricators . | . . . . . . Repair Stations . | . . . . . . Recycling Units . | . . . . . . Scanalyzers . | . . . . . . Garrison Access . | . . . . . . Terminal Hacks 49 | . . . 49 . . Record 49 | . . . 49 . . Fabricator Hacks . | . . . . . . Repair Station Hacks . | . . . . . . Recycling Unit Hacks . | . . . . . . Scanalyzer . | . . . . . . Garrison Access Hacks . | . . . . . . Unauthorized Hacks . | . . . . . . Terminals . | . . . . . . Fabricators . | . . . . . . Repair Stations . | . . . . . . Recycling Units . | . . . . . . Scanalyzers . | . . . . . . Garrison Access . | . . . . . . Data Cores Recovered . | . . . . . . Used . | . . . . . . Hacking Detections . | . . . . . . Full Trace Events . | . . . . . . Feedback Events . | . . . . . . Feedback Blocked . | . . . . . . Robot Schematics Acquired . | . . . . . . Robots Built . | . . . . . . Matter . | . . . . . . Time . | . . . . . . Total Robot Build Rating . | . . . . . . Part Schematics Acquired . | . . . . . . Parts Built . | . . . . . . Matter . | . . . . . . Time . | . . . . . . Total Part Build Rating . | . . . . . . Parts Repaired . | . . . . . . Time . | . . . . . . Parts Recycled . | . . . . . . Recycled Matter . | . . . . . . Retrieved Matter . | . . . . . . Retrieved Components . | . . . . . . Parts Scanalyzed . | . . . . . . Part Schematics Acquired . | . . . . . . Parts Damaged . | . . . . . . Bothacking | -11 -10 -10 -10 -9 -8 ------------ Run | Scr Mat Min Exi Min Mat Used RIF Installer . | . . . . . . Robots Hacked . | . . . . . . Non-combat . | . . . . . . Combat . | . . . . . . Robot Hacks Applied . | . . . . . . Relay Couplers Released . | . . . . . . Robots Rewired . | . . . . . . Allies Hacked . | . . . . . . Hacks Repelled . | . . . . . . Allies | -11 -10 -10 -10 -9 -8 -------- Run | Scr Mat Min Exi Min Mat Total Allies . | . . . . . . Largest Group . | . . . . . . Highest-Rated Group . | . . . . . . Highest-Rated Ally . | . . . . . . Total Orders . | . . . . . . Ally Attacks . | . . . . . . Total Damage . | . . . . . . Kills . | . . . . . . Allies Corrupted . | . . . . . . Allies Melted . | . . . . . . Intel | -11 -10 -10 -10 -9 -8 ------- Run | Scr Mat Min Exi Min Mat Robot Analysis Total . | . . . . . . Derelict Logs Recovered 4 | . . 1 . 3 . Drone Launches . | . . . . . . Drone Recoveries . | . . . . . . Exploration | -11 -10 -10 -10 -9 -8 ------------- Run | Scr Mat Min Exi Min Mat Turns Passed 3184 | 95 169 607 834 201 1278 Spaces Moved 2000 | 61 97 449 683 167 543 Core 19 | 15 . . . . 4 Treads 523 | 46 97 3 . . 377 Legs 1436 | . . 446 683 167 140 Wheels 15 | . . . . . 15 Hover 7 | . . . . . 7 Flight . | . . . . . . Fastest Speed 50 | 50 160 120 120 120 50 Average Speed 127 | 132 160 120 120 120 138 Slowest Speed 160 | 160 160 160 120 120 160 Overloaded Moves . | . . . . . . Propulsion Burnouts . | . . . . . . Robots Hopped . | . . . . . . Cave-ins Triggered . | . . . . . . Exploration Rate (%) 44 | 4 22 83 91 40 26 Regions Visited 5 Branch Regions 3 Pre-discovered Areas 1 | . . . 1 . . Known Exits Taken . | . . . . . . Unknown Exits Taken 5 | 1 1 1 1 1 . Scrap Searched 4 | . . 1 . 3 . Spaces Dug . | . . . . . . Terrain Destroyed 61 | . . . . . 61 Melee . | . . . . . . Projectile 1 | . . . . . 1 AOE 60 | . . . . . 60 Terrain Rammed . | . . . . . . Walls Destroyed . | . . . . . . Machines Disabled . | . . . . . . Actions | -11 -10 -10 -10 -9 -8 --------- Run | Scr Mat Min Exi Min Mat Total 2516 | 75 107 480 699 168 987 Wait 312 | . . . . . 312 Move 1995 | 60 96 448 682 166 543 Hop . | . . . . . . Pick Up 48 | 9 4 3 8 1 23 Fast Attach 9 | 1 1 . 1 . 6 Attach 19 | 5 1 1 . . 12 Detach 1 | . . . . . 1 Swap 29 | . 1 6 2 . 20 Drop 31 | . 2 3 6 1 19 Fire 53 | . 2 19 . . 32 Melee 19 | . . . . . 19 Ram . | . . . . . . Kick . | . . . . . . Crush . | . . . . . . Escape Stasis . | . . . . . . Rewire . | . . . . . . Trap . | . . . . . . Miscellaneous . | . . . . . . Route ------- -11/Scrapyard -10/Materials (discovered 2 exits: [*Mat] / [*Min]) -10/Mines -10/Exiles (discovered 2 exits: [*Min x2]) -9/Mines -8/Materials (discovered 2 exits: Fac / Sto) History --------- Turn | Location | Event 6 | -11/Scrapyard | Discovered new exit (range 15) 96 | -11/Scrapyard | Entered Materials 220 | -10/Materials | Discovered new exit (range 12) 252 | -10/Materials | Discovered new exit (range 7) 265 | -10/Materials | Entered Mines 329 | -10/Mines | Build established: Mutant 453 | -10/Mines | Found a damaged Exp. Sensor Array with a note attached 455 | -10/Mines | Found Prototype Device 456 | -10/Mines | Identified Exp. Sensor Array 474 | -10/Mines | Learned Materials stockpile data 480 | -10/Mines | Assembled infested the area 485 | -10/Mines | Assisted by a Guerilla fighting off Assembled 868 | -10/Mines | Deemed a non-threat by the Exiles lab entrance 868 | -10/Mines | Discovered new exit (range 5) 872 | -10/Mines | Entered Exiles 894 | -10/Exiles | Discovered new exit (range 14) 916 | -10/Exiles | Met 8R-AWN 936 | -10/Exiles | Met EX-HEX 979 | -10/Exiles | Met EX-DEC 1030 | -10/Exiles | Learned location of Zion (-7) 1086 | -10/Exiles | Discovered new exit (range 14) 1182 | -10/Exiles | Met EX-BIN 1377 | -10/Exiles | Visited The Gauntlet 1530 | -10/Exiles | Aligned with FarCom system 1531 | -10/Exiles | Given EX-Vault access code 1560 | -10/Exiles | Opened EX-Vault 1567 | -10/Exiles | Found Prototype Slashing Weapon 1568 | -10/Exiles | Identified Longsword +1 1572 | -10/Exiles | Found Prototype Processor 1573 | -10/Exiles | Identified 0b10 Alert Chip 1581 | -10/Exiles | Found Prototype Storage 1622 | -10/Exiles | Warned to stay clear of 0b10 Research branches 1706 | -10/Exiles | Stole two prototypes: Longsword +1, 0b10 Alert Chip 1706 | -10/Exiles | Entered Mines 1736 | -9/Mines | Learned Materials emergency access door positions 1737 | -9/Mines | Learned Materials stockpile data 1898 | -9/Mines | Discovered new exit (range 5) 1901 | -9/Mines | Learned 4 Materials zone layouts 1907 | -9/Mines | Entered Materials 1907 | -8/Materials | Evolved 4 slots: Power x1, Utility x2, Weapon x1 1908 | -8/Materials | Identified exit to Storage 1908 | -8/Materials | Identified exit to Factory 2201 | -8/Materials | Lost 7 parts (1p1n1u4w) 3138 | -8/Materials | Core integrity fell below 50% 3165 | -8/Materials | Core integrity fell below 20% 3185 | -8/Materials | Destroyed by S-10 Pest with Light Assault Rifle Last Messages --------------- U-05 Engineer builds a Wall. K-01 Serf collects debris. U-05 Engineer lays Concrete. W-25 Informer distress signal jammed. U-05 Engineer builds a Wall. U-05 Engineer lays Concrete. K-01 Serf collects debris. U-05 Engineer lays Concrete. K-01 Serf collects debris. U-05 Engineer lays Concrete. Adv. Treads destroyed. U-05 Engineer lays Concrete. U-05 Engineer builds a Wall. Sneak attack on T-07 Excavator. Destroyed Mining Laser. Destroyed Wheel. T-07 Excavator distress signal jammed. U-05 Engineer lays Concrete. K-01 Serf collects debris. [Achievement: First Step to Greatness] Map ----- +----------------------------------------------------+ | ?????????????????????????????????????????????????? | | ?????????????????????????????????????????????????? | | ?????????????????????????????????????????????????? | | ?????????????????????????????????????????????????? | | ?????????????????????????????????????????????????? | | ?????????????????????????????????????????????????? | | ?????????????????????????????????????????????????? | | ####?????????????????????????????????????????????? | | #?????????????????????????????????????????????? | | """#?????????????????????????????????????????????? | | """#?????????????????????????????????????????????? | | """#?????????????????????????????????????????????? | | #?????????????????????????????????????????????? | | #?????????????????????????????????????????????? | | #??????????????????######?????????????????????? | | #??????????????????# ?????????????????????? | | #??????????????????# ""????????????????????? | | #####???????#####?????# """???????????????????? | | ???? g ????# ""????????????????????? | | ?? ????# ! ????????????????????? | | ???? "?????????????????????? | | ??? ! "???????????????w?????? | | """ ??? ??????????????????????? | | """ " " ?? ??????????????????????? | | """ "G" w###/#############??????????? | | """ @ ????????? | | ????????? | | t u ????????? | | ### # ##u #k ########s################# #### | | ## [=# * Y #?############# #??? | | ## # Y !## #?""" """ """ # #??? | | ## # [ ![ =!=# """ #?""" """ """ # #??? | | ## # ![ =[ # """s#?""" """ """ # #??? | | ## # [ # ![ """ #? + #??? | | ## # # [[ +? # #### | | ### # ## [#? # ## | | ### ####+#####+# # #?######+###### ## | | ???????### # ###########??# # # | | ????????##g ####?????????# # # | | ###+#????????## # # #####?????# # T + | | ## ????????## ## # #####?# # # | | ## "?????????#g####### #?#####+##### # | | # "?????????# g =|+! #?????# #???### ### | | # "?????????#### # # """ #?????# #?????# #?# | | + ????????????# """ ####### #?#####+##### | | # ""????????????###### """ + #?# # | | ## ""?????????????????# # #?# """ # | | ## ""?????????????????######## ### """ # | | ## ???????????????????????# # """ = | | ##############??????????????# + # | +----------------------------------------------------+ Best States ------------- Heat Dissipation 45 Energy Generation 14 Energy Capacity 460 Matter Stores 300 Matter Capacity 300 Sight Range 16 Robot Scan Range 30 Terrain Scan Density 85 Jamming Range 8 Reclamation Efficiency 10 Evasion (%) 50 Targeting Accuracy 6 Recoil Reduction 2 Item Schematics ----------------- None Robot Schematics ------------------ None Fabricated ------------ Nothing Alien Tech Used ----------------- None Achievements -------------- First Step to Greatness I Survived The Infestation Librarian Oops Risk Taker Storm Trooper Total Silence Tourist Uninvited Guest Challenges ------------ None Game ------ Seed RefineryChargeBox Manual? 0 Play Time 00:57:45 Cumulative 2.3 hours Start 2021.11.06 @ 01:42:39 End 2021.11.07 @ 23:42:23 Sessions 3 Manual Loads 0 Difficulty Rogue Special Mode None Game No. 4 Rogue 4 Adventurer 0 Explorer 0 Win Type - Total 0 Types 0/0/0/0/0/0/0/0/0 Lore% 9 Gallery% 5 Achievement% 3 Wizard Run 0 Options --------- ASCII 0 Keyboard 0 Movement Mouse Keybinds 0 Fullscreen 1 Font 24/Smallcaps Map View 76x50 Tactical HUD 0 Map Filters NONE Filters NONE Steam 1 RUN: 3e2599d0-86af-448d-aadb-eba5fb18037a